bitfinex-derivatives/quotes_BTCF0:USTF0_20241130
["timestamp","ask_amount","ask_price","bid_price","bid_amount"]
[1732974483905,0.05169,96686.0,96685.0,0.01578418]
[1732974484105,0.05169,96686.0,96685.0,0.26362826]
[1732974484106,0.20691661,96686.0,96685.0,0.26362826]
[1732974484496,0.20691661,96686.0,96685.0,0.01578429]
[1732974484701,0.20691661,96686.0,96685.0,0.0125514]
[1732974484905,0.20691661,96686.0,96685.0,0.26039548]
[1732974485607,0.20691661,96686.0,96685.0,0.0125514]
[1732974485803,0.20691661,96686.0,96685.0,0.19839804]
[1732974486010,0.20691661,96686.0,96685.0,0.0125514]
[1732974486501,0.20691661,96686.0,96685.0,0.19839804]
[1732974486702,0.20691661,96686.0,96685.0,0.0125514]
[1732974493108,0.20691661,96686.0,96685.0,0.011]
[1732974499613,0.22760889,96686.0,96685.0,0.011]
[1732974503423,0.58840889,96686.0,96685.0,0.011]
[1732974509116,0.051695,96676.0,96673.0,0.01233093]
[1732974509322,0.051698,96672.0,96664.0,0.34102541]
[1732974509518,0.051698,96672.0,96659.0,0.3608]
[1732974509519,0.051702,96663.0,96662.0,0.30946255]
[1732974509816,0.051703,96662.0,96661.0,0.15672]
[1732974510618,0.051703,96662.0,96661.0,0.033]
[1732974510823,0.20616534,96662.0,96661.0,0.033]
[1732974511034,0.20616534,96662.0,96661.0,0.037]
[1732974512116,0.20716534,96662.0,96661.0,0.044]
[1732974513028,0.56796534,96662.0,96661.0,0.044]
[1732974523132,0.56796534,96662.0,96661.0,0.011]
[1732974523524,0.58035499,96662.0,96661.0,0.011]
[1732974523724,0.70407499,96662.0,96661.0,0.011]
[1732974524840,0.70307499,96662.0,96661.0,0.004]
[1732974525739,0.051709,96651.0,96650.0,0.05399712]
[1732974525930,0.051711,96647.0,96646.0,0.0636]
[1732974526441,0.051711,96647.0,96646.0,0.4244]
[1732974527531,0.054711,96647.0,96646.0,0.4244]
[1732974528631,0.060711,96647.0,96646.0,0.4254]
[1732974529037,0.060711,96647.0,96646.0,0.0646]
[1732974529344,0.060711,96647.0,96646.0,0.4254]
[1732974529543,0.057711,96647.0,96646.0,0.0646]
[1732974529736,0.058711,96647.0,96646.0,0.0636]
[1732974530338,0.056711,96647.0,96646.0,0.0636]
[1732974530527,0.058711,96647.0,96646.0,0.4244]
[1732974530943,0.058711,96647.0,96646.0,0.0636]
[1732974534436,0.058711,96647.0,96646.0,0.31122378]
[1732974535836,0.058711,96647.0,96646.0,0.0636]
[1732974536232,0.058711,96647.0,96646.0,0.31122378]
[1732974536545,0.058711,96647.0,96646.0,0.0636]
[1732974537945,0.058711,96647.0,96646.0,0.31141564]
[1732974538545,0.058711,96647.0,96646.0,0.0636]
[1732974539736,0.058711,96647.0,96646.0,0.84591002]
[1732974540139,0.058711,96647.0,96646.0,0.73386255]
[1732974540340,0.058711,96647.0,96646.0,0.0636]
[1732974540535,0.058711,96647.0,96646.0,0.53644707]
[1732974541944,0.058711,96647.0,96646.0,0.84655303]
[1732974542339,0.058711,96647.0,96646.0,0.53646786]
[1732974542549,0.058711,96647.0,96646.0,0.0636]
[1732974542742,0.058711,96647.0,96646.0,0.53645133]
[1732974543047,0.058711,96647.0,96646.0,0.5364581]
[1732974543434,0.058711,96647.0,96646.0,0.3737194]
[1732974543641,0.058711,96647.0,96646.0,0.84657783]
[1732974543947,0.058711,96647.0,96646.0,0.53645843]
[1732974544146,0.058711,96647.0,96646.0,0.84657905]
[1732974544544,0.058711,96647.0,96646.0,0.5364632]
[1732974545250,0.058711,96647.0,96646.0,0.5881742]
[1732974546048,0.058711,96647.0,96646.0,0.59140823]
[1732974546448,0.007,96647.0,96646.0,0.95220823]
[1732974546642,0.3608,96674.0,96646.0,0.90049723]
[1732974546835,0.05325255,96667.0,96666.0,0.18605739]
[1732974547041,0.20694937,96664.0,96662.0,0.0622]
[1732974547339,0.051702,96664.0,96662.0,0.113903]
[1732974548349,0.051702,96664.0,96663.0,0.18592196]
[1732974548544,0.051702,96664.0,96662.0,0.29982496]
[1732974548945,0.051702,96664.0,96663.0,0.18592196]
[1732974549343,0.051702,96664.0,96662.0,0.30282496]
[1732974549543,0.052702,96664.0,96662.0,0.30882496]
[1732974550653,0.052702,96664.0,96663.0,0.18592196]
[1732974550848,0.052702,96664.0,96663.0,0.18992196]
[1732974551043,0.052702,96664.0,96663.0,0.004]
[1732974551352,0.052702,96664.0,96663.0,0.19592196]
[1732974552052,0.052702,96664.0,96663.0,0.19192196]
[1732974553249,0.052702,96664.0,96663.0,0.006]
[1732974553839,0.052702,96664.0,96663.0,0.01]
[1732974555344,0.052702,96664.0,96663.0,0.13368]
[1732974559158,0.052702,96664.0,96663.0,0.01]
[1732974559459,0.052702,96664.0,96663.0,0.31952261]
[1732974559766,0.052702,96664.0,96663.0,0.13368]
[1732974560058,0.052702,96664.0,96663.0,0.01]
[1732974560646,0.20740594,96664.0,96663.0,0.01]
[1732974560848,0.23760594,96664.0,96663.0,0.01]
[1732974563861,0.27010594,96664.0,96663.0,0.01]
[1732974564955,0.63090594,96664.0,96663.0,0.01]
[1732974565364,0.64294266,96664.0,96663.0,0.01]
[1732974574380,0.28214266,96664.0,96663.0,0.01]
[1732974574567,0.64294266,96664.0,96663.0,0.01]
[1732974578076,0.64294266,96664.0,96663.0,1e-06]
[1732974580079,0.74639432,96664.0,96663.0,1e-06]
[1732974584379,1.10719432,96664.0,96663.0,1e-06]
[1732974586788,0.051711,96646.0,96645.0,9.5e-07]
[1732974586983,0.536191,96646.0,96645.0,9.5e-07]
[1732974587291,0.69186432,96646.0,96645.0,9.5e-07]
[1732974587893,0.69195344,96646.0,96645.0,9.5e-07]
[1732974590289,0.70450526,96646.0,96645.0,9.5e-07]
[1732974590783,0.051717,96636.0,96635.0,0.0632]
[1732974590983,0.412517,96636.0,96635.0,0.0632]
[1732974591192,0.56860819,96636.0,96635.0,0.0632]
[1732974592483,0.56860819,96636.0,96635.0,0.0672]
[1732974593489,0.56860819,96636.0,96635.0,0.0692]
[1732974596494,0.20780819,96636.0,96635.0,0.0692]
[1732974596800,0.56860819,96636.0,96635.0,0.0692]
[1732974599491,0.58116108,96636.0,96635.0,0.0692]
[1732974605598,0.58116108,96636.0,96617.0,0.01204524]
[1732974605599,0.58116108,96636.0,96617.0,0.18584049]
[1732974605796,0.051724,96622.0,96621.0,0.0313]
[1732974606201,0.20684842,96622.0,96621.0,0.0313]
[1732974607300,0.20884842,96622.0,96621.0,0.0313]
[1732974607800,0.20984842,96622.0,96621.0,0.0313]
[1732974615701,0.051731,96610.0,96609.0,9.824e-05]
[1732974615902,0.412531,96610.0,96609.0,9.824e-05]
[1732974616101,0.56816037,96610.0,96609.0,9.824e-05]
[1732974618204,0.56816037,96610.0,96609.0,0.00509824]
[1732974619000,0.58065126,96610.0,96609.0,0.00509824]
[1732974619797,0.21985126,96610.0,96609.0,0.00509824]
[1732974621394,0.20736037,96610.0,96609.0,0.00509824]
[1732974622308,0.051731,96610.0,96609.0,0.00509824]
[1732974623300,0.051731,96610.0,96609.0,0.19093873]
[1732974623496,0.3608,96625.0,96609.0,0.00509824]
[1732974623703,0.3608,96625.0,96618.0,0.18590056]
[1732974623902,0.051726,96618.0,96617.0,0.175406]
[1732974624108,0.01226634,96630.0,96617.0,0.24786742]
[1732974624412,0.01226634,96630.0,96622.0,0.051724]
[1732974624413,0.051724,96623.0,96622.0,0.051724]
[1732974624602,0.051724,96623.0,96622.0,0.41575904]
[1732974627004,0.053724,96623.0,96622.0,0.41575904]
[1732974627400,0.48721956,96640.0,96622.0,0.412524]
[1732974627605,0.051724,96623.0,96622.0,0.412524]
[1732974629210,0.051724,96623.0,96622.0,0.414524]
[1732974629511,0.05172,96630.0,96629.0,0.05172]
[1732974629708,0.05172,96630.0,96629.0,0.36116001]
[1732974629909,0.05172,96630.0,96629.0,0.17536]
[1732974630811,0.05172,96630.0,96629.0,0.36113511]
[1732974631005,0.05272,96630.0,96629.0,0.36113511]
[1732974632111,0.05272,96630.0,96629.0,0.17536]
[1732974632809,0.05372,96630.0,96629.0,0.17536]
[1732974633215,0.05372,96630.0,96627.0,0.18577511]
[1732974633216,0.002,96630.0,96627.0,0.18577511]
[1732974633408,0.051721,96628.0,96626.0,0.23749711]
[1732974633610,0.051721,96628.0,96627.0,0.1236]
[1732974634215,0.051721,96628.0,96627.0,0.30937511]
[1732974634408,0.051721,96628.0,96627.0,0.1236]
[1732974635716,0.051723,96624.0,96623.0,0.18577511]
[1732974635912,0.051723,96624.0,96623.0,0.30937511]
[1732974636815,0.052723,96624.0,96623.0,0.30937511]
[1732974638117,0.055723,96624.0,96623.0,0.30937511]
[1732974638521,0.055723,96624.0,96623.0,0.1236]
[1732974640119,0.003,96624.0,96622.0,0.051724]
[1732974640315,0.051724,96623.0,96622.0,0.051724]
[1732974640511,0.051724,96623.0,96622.0,0.1236]
[1732974641925,0.053724,96623.0,96622.0,0.1236]
[1732974643629,0.003,96623.0,96622.0,0.1236]
[1732974643922,0.054724,96623.0,96622.0,0.1236]
[1732974645520,0.054724,96623.0,96622.0,0.30937511]
[1732974646120,0.054724,96623.0,96622.0,0.1236]
[1732974647424,0.054724,96623.0,96622.0,0.175324]
[1732974648625,0.003,96623.0,96622.0,0.175324]
[1732974649023,0.003,96623.0,96622.0,0.17855872]
[1732974649223,0.003,96623.0,96622.0,0.175324]
[1732974649425,0.003,96623.0,96622.0,0.96159604]
[1732974649636,0.002,96623.0,96622.0,0.96159604]
[1732974650523,0.002,96623.0,96622.0,0.65250069]
[1732974650720,0.051723,96627.0,96626.0,0.051722]
[1732974653227,0.052723,96627.0,96626.0,0.051722]
[1732974653427,0.052723,96627.0,96626.0,0.05495678]
[1732974653824,0.053723,96627.0,96626.0,0.05495678]
[1732974654528,0.052723,96627.0,96626.0,0.05495678]
[1732974654728,0.054723,96627.0,96626.0,0.05495678]
[1732974655248,0.054723,96627.0,96626.0,0.05495677]
[1732974655625,0.052723,96627.0,96626.0,0.05495677]
[1732974655825,0.056723,96627.0,96626.0,0.05495677]
[1732974656320,0.055723,96627.0,96626.0,0.05495677]
[1732974656527,0.057723,96627.0,96626.0,0.05495677]
[1732974658120,0.057723,96627.0,96626.0,0.36488026]
[1732974658326,0.057723,96627.0,96626.0,0.83783044]
[1732974658526,0.057723,96627.0,96626.0,0.83459567]
[1732974658726,0.057723,96627.0,96626.0,0.83783043]
[1732974659124,0.057723,96627.0,96626.0,0.36488025]
[1732974659833,0.055723,96627.0,96626.0,0.05495676]
[1732974660035,0.055723,96627.0,96626.0,0.36488025]
[1732974660229,0.054723,96627.0,96626.0,0.36488025]
[1732974660434,0.054723,96627.0,96626.0,0.051722]
[1732974660933,0.054723,96627.0,96626.0,0.29990664]
[1732974661128,0.054723,96627.0,96626.0,0.051722]
[1732974661437,0.052723,96627.0,96626.0,0.051722]
[1732974661733,0.052723,96627.0,96626.0,0.29990664]
[1732974661734,0.055723,96627.0,96626.0,0.29990664]
[1732974662236,0.055723,96627.0,96626.0,0.051722]
[1732974662437,0.055723,96627.0,96626.0,0.05495678]
[1732974662838,0.054723,96627.0,96626.0,0.05495678]
[1732974665045,0.053723,96627.0,96626.0,0.05495678]
[1732974665336,0.054723,96627.0,96626.0,0.05495678]
[1732974666131,0.054723,96627.0,96626.0,0.051722]
[1732974666334,0.054723,96627.0,96626.0,0.05495678]
[1732974668031,0.053723,96627.0,96626.0,0.0549568]
[1732974668229,0.055723,96627.0,96626.0,0.0549568]
[1732974668428,0.057723,96627.0,96626.0,0.3032267]
[1732974668633,0.057723,96627.0,96626.0,0.051722]
[1732974669434,0.056723,96627.0,96626.0,0.051722]
[1732974669839,0.055723,96627.0,96626.0,0.051722]
[1732974670738,0.004,96627.0,96624.0,0.30992349]
[1732974671240,0.051723,96624.0,96623.0,0.30992349]
[1732974671431,0.051724,96623.0,96622.0,0.43352349]
[1732974671739,0.051724,96623.0,96622.0,0.90650796]
[1732974671948,0.051724,96623.0,96622.0,0.78290796]
[1732974672147,0.051724,96623.0,96622.0,0.43348349]
[1732974672536,0.052724,96623.0,96622.0,0.12356]
[1732974672736,0.052724,96623.0,96622.0,0.43348349]
[1732974673040,0.054724,96623.0,96622.0,0.43348349]
[1732974673633,0.054724,96623.0,96622.0,0.90646852]
[1732974673839,0.054724,96623.0,96622.0,0.43348349]
[1732974675336,0.054724,96623.0,96622.0,0.90647301]
[1732974675536,0.054724,96623.0,96622.0,0.43348349]
[1732974675747,0.054724,96623.0,96622.0,0.12356]
[1732974675947,0.051725,96621.0,96620.0,0.01212125]
[1732974676245,0.051725,96621.0,96620.0,0.12356]
[1732974679645,0.052725,96621.0,96620.0,0.12356]
[1732974682551,0.052725,96621.0,96620.0,0.126795]
[1732974682750,0.052725,96621.0,96620.0,0.59978027]
[1732974683045,0.052725,96621.0,96620.0,0.59654527]
[1732974683851,0.052725,96621.0,96620.0,0.59655363]
[1732974684355,0.052725,96621.0,96620.0,0.90686165]
[1732974684546,0.052725,96621.0,96620.0,0.59655363]
[1732974684748,0.052725,96621.0,96620.0,0.90686207]
[1732974685054,0.052725,96621.0,96620.0,0.59655363]
[1732974685255,0.051725,96621.0,96620.0,0.59655363]
[1732974685852,0.051725,96621.0,96620.0,0.90685527]
[1732974686053,0.052725,96621.0,96620.0,0.59655363]
[1732974686253,0.052725,96621.0,96620.0,0.59655377]
[1732974686453,0.052725,96621.0,96620.0,0.90685526]
[1732974686957,0.052725,96621.0,96620.0,0.59655377]
[1732974689256,0.052725,96621.0,96620.0,0.47299377]
[1732974689551,0.052725,96621.0,96620.0,0.59651377]
[1732974691058,0.052725,96621.0,96620.0,0.12352]
[1732974691850,0.052725,96621.0,96620.0,0.48432]
[1732974693854,0.052725,96621.0,96620.0,0.3608]
[1732974694052,0.052725,96621.0,96620.0,0.48432]
[1732974694850,0.052725,96621.0,96620.0,0.73260823]
[1732974695559,0.052725,96621.0,96620.0,0.60908823]
[1732974695752,0.052725,96621.0,96620.0,0.3608]
[1732974700262,0.052725,96621.0,96598.0,0.0207051]
[1732974700263,0.051727,96617.0,96615.0,0.31030371]
[1732974700460,0.051729,96613.0,96612.0,0.24827203]
[1732974700762,0.051729,96613.0,96612.0,0.18621659]
[1732974700763,0.5672128,96613.0,96612.0,0.18621659]
[1732974700958,0.05173,96611.0,96610.0,0.18621659]
[1732974701158,0.05173,96611.0,96609.0,0.18631483]
[1732974701355,0.2064138,96611.0,96609.0,9.824e-05]
[1732974702759,0.2064138,96611.0,96609.0,0.00509824]
[1732974703165,0.2064138,96611.0,96610.0,0.002]
[1732974705161,0.5672138,96611.0,96610.0,0.002]
[1732974705473,0.57952801,96611.0,96610.0,0.002]
[1732974705661,0.57952801,96611.0,96610.0,0.006]
[1732974706067,0.57952801,96611.0,96610.0,0.004]
[1732974707972,0.21872801,96611.0,96610.0,0.004]
[1732974708171,0.57952801,96611.0,96610.0,0.004]
[1732974710577,0.57952801,96611.0,96610.0,0.006]
[1732974711274,0.60023694,96611.0,96610.0,0.006]
[1732974724574,0.72375694,96611.0,96610.0,0.006]
[1732974726981,0.60023694,96611.0,96610.0,0.006]
[1732974727879,0.5672138,96611.0,96610.0,0.006]
[1732974728277,0.5672138,96611.0,96610.0,0.0377]
[1732974731881,0.2064138,96611.0,96610.0,0.0377]
[1732974732087,0.2064138,96611.0,96610.0,0.0357]
[1732974732287,0.2064138,96611.0,96610.0,0.0367]
[1732974732578,0.2064138,96611.0,96610.0,0.22285462]
[1732974732579,0.05173,96611.0,96610.0,0.22285462]
[1732974733176,0.05173,96611.0,96610.0,0.0367]
[1732974736376,0.05173,96611.0,96610.0,0.16022]
[1732974739378,0.05173,96611.0,96610.0,0.12852]
[1732974739587,0.05173,96611.0,96610.0,0.31453808]
[1732974739784,0.05173,96611.0,96610.0,0.12852]
[1732974741287,0.05173,96611.0,96610.0,0.005]
[1732974742786,0.20721694,96611.0,96610.0,0.005]
[1732974744481,0.23881694,96611.0,96610.0,0.005]
[1732974756707,0.23881694,96611.0,96609.0,9.824e-05]
[1732974757994,0.23881694,96611.0,96609.0,2.4e-07]
[1732974758999,7.611e-05,96610.0,96609.0,2.4e-07]
[1732974759406,0.15516558,96610.0,96609.0,2.4e-07]
[1732974760208,0.25867506,96610.0,96609.0,2.4e-07]
[1732974760406,0.051751,96573.0,96569.0,0.3053796]
[1732974760708,0.7216,96570.0,96553.0,0.0252]
[1732974760901,0.3608,96554.0,96553.0,0.0252]
[1732974761607,0.051759,96557.0,96553.0,0.0252]
[1732974762009,0.3608,96554.0,96553.0,0.0252]
[1732974762310,0.3608,96554.0,96553.0,0.14868]
[1732974762520,0.05176,96556.0,96553.0,0.14868]
[1732974762704,0.052761,96554.0,96553.0,0.15668]
[1732974762909,0.413561,96554.0,96553.0,0.15668]
[1732974764007,0.053761,96554.0,96553.0,0.15668]
[1732974764208,0.3618,96554.0,96553.0,0.14868]
[1732974764402,0.001,96554.0,96553.0,0.15668]
[1732974764604,0.001,96554.0,96553.0,0.0332]
[1732974764909,0.001,96554.0,96553.0,1.65668]
[1732974765416,0.001,96556.0,96554.0,0.051761]
[1732974765712,0.051758,96559.0,96555.0,0.05176]
[1732974767010,0.051758,96559.0,96556.0,0.051759]
[1732974767519,0.051758,96559.0,96558.0,0.051759]
[1732974767910,0.052758,96559.0,96558.0,0.051759]
[1732974768913,0.053758,96559.0,96558.0,0.058759]
[1732974770802,0.052758,96559.0,96558.0,0.058759]
[1732974771006,0.002,96559.0,96558.0,0.062759]
[1732974773114,0.00080001,96564.0,96563.0,0.051756]
[1732974773310,0.3608,96576.0,96575.0,0.051749]
[1732974773511,0.3608,96576.0,96575.0,0.175229]
[1732974773717,0.051746,96581.0,96580.0,0.051747]
[1732974774408,0.3608,96585.0,96576.0,0.0315]
[1732974774611,0.051748,96578.0,96576.0,0.0315]
[1732974775821,0.051748,96578.0,96576.0,0.0335]
[1732974777115,0.051748,96578.0,96576.0,0.0375]
[1732974777428,0.412548,96578.0,96576.0,0.0375]
[1732974780223,0.412548,96578.0,96576.0,0.089249]
[1732974781321,0.412548,96578.0,96576.0,0.057749]
[1732974781521,0.3608,96578.0,96576.0,0.057749]
[1732974782229,0.3608,96578.0,96577.0,0.051748]
[1732974782713,0.3608,96589.0,96577.0,0.051748]
[1732974782919,0.3608,96589.0,96588.0,0.051742]
[1732974783119,0.3608,96589.0,96588.0,0.175182]
[1732974783832,0.412542,96589.0,96588.0,0.175182]
[1732974785035,0.414542,96589.0,96588.0,0.175182]
[1732974785231,0.415542,96589.0,96588.0,0.175182]
[1732974786325,0.415542,96589.0,96588.0,0.12344]
[1732974787120,0.051745,96584.0,96583.0,0.051745]
[1732974787328,0.051745,96584.0,96583.0,0.175185]
[1732974788429,0.051745,96584.0,96583.0,0.177185]
[1732974791526,0.051745,96584.0,96583.0,0.12544]
[1732974792135,0.051745,96584.0,96583.0,0.002]
[1732974793032,0.051748,96577.0,96563.0,0.051756]
[1732974793228,0.412553,96569.0,96563.0,0.051756]
[1732974793529,0.412553,96569.0,96568.0,0.12499316]
[1732974793926,0.412553,96569.0,96568.0,0.00155316]
[1732974794121,0.412553,96569.0,96568.0,0.12499316]
[1732974794533,0.412553,96569.0,96568.0,0.13399316]
[1732974794534,0.413553,96569.0,96568.0,0.13399316]
[1732974794728,0.413553,96569.0,96568.0,0.01055316]
[1732974794933,0.413553,96569.0,96568.0,0.13399316]
[1732974795723,0.412553,96569.0,96568.0,0.13399316]
[1732974795929,0.412553,96569.0,96568.0,0.01055316]
[1732974796128,0.412553,96569.0,96568.0,0.00755316]
[1732974805245,0.56888222,96569.0,96568.0,0.00755316]
[1732974812363,0.58960016,96569.0,96568.0,0.00755316]
[1732974816071,0.58972886,96569.0,96568.0,0.006]
[1732974816370,0.05176,96556.0,96555.0,0.15654]
[1732974816571,0.41256,96556.0,96555.0,0.15654]
[1732974816774,0.41256,96556.0,96555.0,0.12344]
[1732974817866,0.41356,96556.0,96555.0,0.12944]
[1732974818070,0.41356,96556.0,96555.0,0.006]
[1732974818472,0.41456,96556.0,96555.0,0.007]
[1732974827671,0.57053033,96556.0,96555.0,0.007]
[1732974832677,0.57053033,96556.0,96555.0,0.0707]
[1732974833175,0.41456,96556.0,96555.0,0.0707]
[1732974833778,0.3628,96556.0,96555.0,0.0707]
[1732974834178,0.3618,96556.0,96555.0,0.0687]
[1732974839781,0.001,96556.0,96555.0,0.0687]
[1732974842683,0.001,96556.0,96555.0,0.0687]
[1732974851089,0.001,96556.0,96555.0,0.19214]
[1732974851986,0.001,96556.0,96555.0,0.44011092]
[1732974853301,0.001,96556.0,96555.0,0.19214]
[1732974854296,0.001,96556.0,96555.0,0.0687]
[1732974854589,0.001,96556.0,96555.0,0.19214]
[1732974855696,0.001,96556.0,96555.0,0.15934]
[1732974855893,0.001,96556.0,96555.0,0.12844]
[1732974856983,0.001,96556.0,96555.0,0.005]
[1732974857184,0.001,96556.0,96555.0,0.12844]
[1732974860584,0.001,96556.0,96555.0,0.1802]
[1732974869103,0.001,96556.0,96555.0,0.18016]
[1732974880703,0.001,96556.0,96555.0,0.428633]
[1732974882206,0.001,96556.0,96555.0,0.18016]
[1732974882910,0.001,96556.0,96555.0,0.42865159]
[1732974883209,0.001,96556.0,96555.0,0.18016]
[1732974884298,0.001,96556.0,96555.0,0.05676]
[1732974884498,0.001,96556.0,96555.0,0.18016]
[1732974885113,0.05276,96556.0,96555.0,0.18016]
[1732974889507,0.05276,96556.0,96555.0,0.05676]
[1732974889809,0.05276,96556.0,96555.0,0.18016]
[1732974890510,0.05276,96556.0,96555.0,0.42865159]
[1732974890716,0.05276,96556.0,96555.0,0.18016]
[1732974891011,0.001,96556.0,96555.0,0.18016]
[1732974894808,0.001,96556.0,96555.0,0.21046]
[1732974895918,0.001,96556.0,96555.0,0.08706]
[1732974896123,0.001,96556.0,96555.0,0.21046]
[1732974906320,0.001,96556.0,96555.0,0.08706]
[1732974906528,0.001,96556.0,96555.0,0.21046]
[1732974914428,0.05276,96556.0,96555.0,0.42863191]
[1732974915228,0.05276,96556.0,96555.0,0.18016]
[1732974915536,0.05276,96556.0,96555.0,0.42863191]
[1732974915734,0.05276,96556.0,96555.0,0.18016]
[1732974916532,0.05276,96556.0,96555.0,0.1284]
[1732974916833,0.08536,96556.0,96555.0,0.1284]
[1732974918828,0.08536,96556.0,96555.0,0.005]
[1732974921632,0.44616,96556.0,96555.0,0.005]
[1732974922633,0.60079711,96556.0,96555.0,0.005]
[1732974930750,0.56819711,96556.0,96555.0,0.005]
[1732974935257,0.20739711,96556.0,96555.0,0.005]
[1732974940465,0.20739711,96556.0,96555.0,0.19136618]
[1732974942061,0.20739711,96556.0,96555.0,0.005]
[1732974942873,0.56819711,96556.0,96555.0,0.005]
[1732974943566,0.56819711,96556.0,96555.0,0.19131416]
[1732974943768,0.56819711,96556.0,96555.0,0.005]
[1732974953865,0.56819711,96556.0,96555.0,0.19131416]
[1732974954477,0.56819711,96556.0,96555.0,0.005]
[1732974967679,0.69159711,96556.0,96555.0,0.005]
[1732974967881,0.051763,96550.0,96549.0,7.821e-05]
[1732974968081,0.412563,96550.0,96549.0,7.821e-05]
[1732974968280,0.56882704,96550.0,96549.0,7.821e-05]
[1732974969292,0.69222704,96550.0,96549.0,7.821e-05]
[1732974969994,0.69222704,96550.0,96549.0,0.00507821]
[1732974970581,0.69322704,96550.0,96549.0,0.01007821]
[1732974971394,0.69322704,96550.0,96532.0,0.18625769]
[1732974971395,0.05177,96537.0,96532.0,0.18625769]
[1732974971689,0.3608,96536.0,96531.0,0.18625769]
[1732974971885,0.3608,96536.0,96530.0,0.18625769]
[1732974972089,0.3608,96536.0,96529.0,0.18625769]
[1732974972276,0.3608,96536.0,96524.0,0.24847462]
[1732974972277,0.3608,96536.0,96528.0,0.18625769]
[1732974972780,0.3608,96536.0,96529.0,0.18625769]
[1732974972985,0.3608,96536.0,96534.0,0.051771]
[1732974973183,0.3608,96536.0,96535.0,0.03955377]
[1732974973988,0.3618,96536.0,96535.0,0.03755377]
[1732974974780,0.3628,96536.0,96535.0,0.03755377]
[1732974977394,0.002,96536.0,96535.0,0.03755377]
[1732974981497,0.002,96536.0,96535.0,0.00755377]
[1732974982497,0.002,96536.0,96535.0,0.006]
[1732974987908,0.3628,96536.0,96535.0,0.006]
[1732974988905,0.57028104,96536.0,96535.0,0.006]
[1732975020833,0.57028104,96536.0,96524.0,0.0331]
[1732975020834,0.051775,96528.0,96524.0,0.18649101]
[1732975021015,0.412576,96525.0,96524.0,0.18649101]
[1732975021218,0.051777,96524.0,96523.0,0.18649101]
[1732975021630,0.20680928,96524.0,96523.0,0.18649101]
[1732975021822,0.051779,96520.0,96519.0,0.24847462]
[1732975022125,0.20641813,96520.0,96519.0,0.24847462]
[1732975022631,0.05178,96518.0,96517.0,0.24847462]
[1732975022831,0.051781,96517.0,96515.0,0.05343544]
[1732975023018,0.051781,96516.0,96515.0,0.00165444]
[1732975023821,0.051781,96516.0,96515.0,0.12509444]
[1732975024534,0.052781,96516.0,96515.0,0.12509444]
[1732975024726,0.053781,96516.0,96515.0,0.12509444]
[1732975026530,0.053781,96516.0,96515.0,0.37364415]
[1732975026733,0.053781,96516.0,96515.0,0.12509444]
[1732975026927,0.053781,96516.0,96515.0,0.37364415]
[1732975027729,0.053781,96516.0,96515.0,0.12509444]
[1732975028237,0.053781,96516.0,96515.0,0.37364415]
[1732975028922,0.053781,96516.0,96515.0,0.12509444]
[1732975029121,0.053781,96516.0,96515.0,0.20907644]
[1732975030828,0.002,96516.0,96515.0,0.20907644]
[1732975033624,0.002,96516.0,96515.0,0.08563644]
[1732975033844,0.002,96516.0,96515.0,0.20907644]
[1732975035638,0.002,96516.0,96515.0,0.45758989]
[1732975036530,0.002,96516.0,96515.0,0.20907644]
[1732975041641,0.002,96516.0,96515.0,0.17687644]
[1732975045738,0.002,96516.0,96515.0,0.05667475]
[1732975045940,0.002,96516.0,96515.0,0.18011475]
[1732975046350,0.002,96516.0,96515.0,0.18011474]
[1732975047043,0.001,96516.0,96515.0,0.18011474]
[1732975047251,0.002,96516.0,96515.0,0.18311474]
[1732975051939,0.002,96516.0,96515.0,0.17987644]
[1732975053348,0.002,96516.0,96515.0,0.05643644]
[1732975053551,0.053781,96516.0,96515.0,0.05643644]
[1732975053848,0.053781,96516.0,96515.0,0.4284556]
[1732975054038,0.053781,96516.0,96515.0,0.42845288]
[1732975054639,0.053781,96516.0,96515.0,0.37667088]
[1732975054842,0.053781,96516.0,96515.0,0.12805444]
[1732975056846,0.053781,96516.0,96515.0,0.00465444]
[1732975060359,0.052781,96516.0,96515.0,0.00465444]
[1732975060660,0.053781,96516.0,96515.0,0.00465444]
[1732975066762,0.053781,96516.0,96515.0,0.19104774]
[1732975066953,0.053781,96516.0,96515.0,0.00465444]
[1732975067145,0.053781,96516.0,96515.0,0.19104733]
[1732975067347,0.053781,96516.0,96515.0,0.00465444]
[1732975068254,0.053781,96516.0,96515.0,0.19104806]
[1732975068558,0.053781,96516.0,96515.0,0.00465444]
[1732975075756,0.052781,96516.0,96515.0,0.00465444]
[1732975080265,0.052781,96516.0,96503.0,0.00052]
[1732975080266,0.20749282,96516.0,96503.0,0.00052]
[1732975080470,0.3608,96504.0,96500.0,0.1]
[1732975080763,0.051789,96501.0,96500.0,0.1]
[1732975081358,0.20646309,96501.0,96500.0,0.1]
[1732975082463,0.20746309,96501.0,96500.0,0.1]
[1732975083566,0.20846309,96501.0,96500.0,0.1]
[1732975085157,0.20746309,96501.0,96500.0,0.1]
[1732975087163,0.21970603,96501.0,96500.0,0.1]
[1732975094164,0.20746309,96501.0,96500.0,0.1]
[1732975094371,0.22819609,96501.0,96500.0,0.1]
[1732975103870,0.58899609,96501.0,96500.0,0.1]
[1732975110270,0.051796,96489.0,96488.0,0.00013271]
[1732975110471,0.412596,96489.0,96488.0,0.00013271]
[1732975111470,0.413596,96489.0,96488.0,0.00013271]
[1732975111670,0.414596,96489.0,96488.0,0.00013271]
[1732975119375,0.56944502,96489.0,96488.0,0.00013271]
[1732975119776,0.20864502,96489.0,96488.0,0.00013271]
[1732975119968,0.56944502,96489.0,96488.0,0.00013271]
[1732975127278,0.20864502,96489.0,96488.0,0.00013271]
[1732975127480,0.56944502,96489.0,96488.0,0.00013271]
[1732975141088,0.56952354,96489.0,96488.0,0.00013271]
[1732975142192,0.69428354,96489.0,96488.0,0.00013271]